bitfinex/quotes_SOLUSD_20241115
["timestamp","ask_amount","ask_price","bid_price","bid_amount"]
[1731684750437,22.32823029,207.45,207.38,46.32427891]
[1731684750915,22.32823029,207.44,207.38,23.99604862]
[1731684751117,22.32823029,207.43,207.38,23.902374]
[1731684751331,22.32823029,207.44,207.38,23.902374]
[1731684751521,22.32823029,207.45,207.4,0.12549]
[1731684751715,22.32823029,207.42,207.4,0.12549]
[1731684751914,22.32823029,207.43,207.4,0.12549]
[1731684752235,22.32823029,207.45,207.4,23.902374]
[1731684752415,22.32823029,207.47,207.42,23.902374]
[1731684752620,22.32823029,207.49,207.42,46.23060429]
[1731684752832,22.32823029,207.5,207.43,22.32823029]
[1731684753037,21.7615,207.59,207.45,0.09367462]
[1731684753038,22.32823029,207.51,207.45,0.09367462]
[1731684753340,22.32823029,207.52,207.48,0.12549]
[1731684753636,22.32823029,207.52,207.47,23.902374]
[1731684753828,22.32823029,207.54,207.48,20.21916462]
[1731684754037,22.32823029,207.54,207.49,23.902374]
[1731684754216,22.32823029,207.52,207.48,20.0]
[1731684754533,22.32823029,207.52,207.47,43.902374]
[1731684754737,22.32823029,207.54,207.47,66.23060429]
[1731684754927,22.32823029,207.54,207.49,0.12549]
[1731684755123,16.7035,207.59,207.49,0.12549]
[1731684755124,22.32823029,207.55,207.49,22.45372029]
[1731684755328,22.32823029,207.56,207.49,46.23060429]
[1731684755637,22.32823029,207.6,207.53,22.45372029]
[1731684755821,16.0505,207.65,207.54,42.32823029]
[1731684755822,22.32823029,207.61,207.54,42.32823029]
[1731684756022,22.32823029,207.6,207.54,42.32823029]
[1731684756223,22.32823029,207.62,207.56,22.32823029]
[1731684756435,22.32823029,207.65,207.59,46.23060429]
[1731684756621,22.32823029,207.68,207.62,0.12549]
[1731684756822,45.3097,207.76,207.61,24.12153862]
[1731684756823,32.2494,207.76,207.61,24.12153862]
[1731684757128,22.32823029,207.75,207.69,22.45372029]
[1731684757325,9.83764595,207.85,207.71,46.44976891]
[1731684757635,0.1,207.86,207.7,20.12549]
[1731684757636,35.7174,207.84,207.7,20.12549]
[1731684757939,35.7174,207.84,207.66,44.027864]
[1731684757940,22.32823029,207.71,207.66,44.027864]
[1731684758116,22.32823029,207.73,207.67,22.32823029]
[1731684758312,22.32823029,207.72,207.68,4.05]
[1731684758733,22.32823029,207.75,207.69,22.32823029]
[1731684758935,36.15370805,207.78,207.71,36.27919805]
[1731684759240,36.15370805,207.77,207.72,16.8495]
[1731684759419,36.15370805,207.75,207.72,16.8495]
[1731684759743,32.2494,207.84,207.73,36.27919805]
[1731684759952,36.15370805,207.79,207.73,36.27919805]
[1731684760267,36.15370805,207.81,207.75,36.15370805]
[1731684760439,36.15370805,207.8,207.74,36.15370805]
[1731684760643,36.15370805,207.81,207.75,36.49836267]
[1731684760945,36.15370805,207.83,207.77,36.15370805]
[1731684761320,36.15370805,207.83,207.78,4.8127]
[1731684762218,3.3674,207.88,207.78,4.8127]
[1731684762219,36.15370805,207.81,207.78,4.8127]
[1731684762421,36.15370805,207.81,207.78,16.8446]
[1731684762620,36.15370805,207.82,207.78,12.0319]
[1731684762844,36.15370805,207.81,207.78,12.0319]
[1731684763037,36.15370805,207.8,207.78,12.0319]
[1731684763437,36.15370805,207.79,207.78,12.0319]
[1731684763740,36.15370805,207.79,207.76,4.8132]
[1731684764148,36.15370805,207.8,207.76,4.8132]
[1731684764847,3.4674,207.88,207.77,36.15370805]
[1731684764848,36.15370805,207.83,207.77,36.15370805]
[1731684765017,36.15370805,207.81,207.76,4.8132]
[1731684765222,36.15370805,207.79,207.76,4.8132]
[1731684765742,36.15370805,207.81,207.76,4.8132]
[1731684765921,36.15370805,207.82,207.76,40.96690805]
[1731684766123,36.15370805,207.82,207.76,16.8463]
[1731684766419,36.15370805,207.78,207.76,12.0331]
[1731684767149,36.15370805,207.77,207.72,20.0]
[1731684767436,36.15370805,207.73,207.7,12.0361]
[1731684767780,36.15370805,207.8,207.7,12.0361]
[1731684767781,36.15370805,207.72,207.7,12.0361]
[1731684768123,36.15370805,207.73,207.7,12.0361]
[1731684769019,36.15370805,207.71,207.64,12.0397]
[1731684769220,36.15370805,207.65,207.58,4.8174]
[1731684769419,36.15370805,207.7,207.58,12.043]
[1731684769420,36.15370805,207.61,207.58,12.043]
[1731684769625,0.1,207.68,207.58,12.043]
[1731684770349,36.15370805,207.63,207.58,12.043]
[1731684770641,36.15370805,207.68,207.62,36.15370805]
[1731684771027,36.15370805,207.68,207.59,0.09367462]
[1731684771028,36.15370805,207.72,207.66,36.27919805]
[1731684771239,30.7414,207.78,207.66,36.27919805]
[1731684771240,34.1104,207.78,207.66,36.15370805]
[1731684771445,36.15370805,207.73,207.65,23.776884]
[1731684771648,36.15370805,207.76,207.69,59.93059205]
[1731684771947,36.15370805,207.76,207.69,23.776884]
[1731684772158,36.15370805,207.71,207.67,20.0]
[1731684772357,36.15370805,207.71,207.65,23.902374]
[1731684772539,36.15370805,207.69,207.65,16.8551]
[1731684772855,36.15370805,207.73,207.66,36.15370805]
[1731684773238,36.15370805,207.72,207.66,36.15370805]
[1731684773431,36.15370805,207.7,207.65,16.8551]
[1731684773830,36.15370805,207.71,207.65,53.00880805]
[1731684774054,3.3695,207.75,207.65,16.8551]
[1731684774055,36.15370805,207.68,207.65,16.8551]
[1731684774351,3.3695,207.75,207.65,12.0394]
[1731684775733,36.15370805,207.67,207.62,4.8164]
[1731684776248,36.15370805,207.68,207.62,16.8576]
[1731684776550,36.15370805,207.63,207.57,48.19750805]
[1731684776751,36.15370805,207.63,207.57,12.0438]
[1731684776944,36.15370805,207.63,207.58,16.8607]
[1731684778137,36.15370805,207.64,207.58,16.8607]
[1731684778746,36.15370805,207.64,207.58,53.01440805]
[1731684779958,36.15370805,207.64,207.57,36.15370805]
[1731684780152,36.15370805,207.63,207.56,36.15370805]
[1731684780337,36.15370805,207.64,207.58,36.15370805]
[1731684780539,36.15370805,207.64,207.57,36.15370805]
[1731684780839,36.15370805,207.62,207.56,36.15370805]
[1731684781040,36.15370805,207.63,207.57,36.15370805]
[1731684781251,36.15370805,207.6,207.55,4.8179]
[1731684781553,36.15370805,207.59,207.55,4.8179]
[1731684781757,36.15370805,207.61,207.55,16.8631]
[1731684781955,36.15370805,207.61,207.55,53.01680805]
[1731684782341,36.15370805,207.64,207.57,36.15370805]
[1731684782659,36.15370805,207.67,207.61,36.15370805]
[1731684783067,3.37,207.71,207.56,0.09367462]
[1731684783068,36.15370805,207.66,207.6,36.15370805]
[1731684783237,44.8831,207.72,207.61,4.8167]
[1731684783238,36.15370805,207.65,207.61,4.8167]
[1731684783439,36.15370805,207.62,207.59,12.0425]
[1731684783742,36.15370805,207.61,207.59,12.0425]
[1731684783945,36.15370805,207.6,207.52,36.15370805]
[1731684784259,36.15370805,207.56,207.5,53.02100805]
[1731684784449,36.15370805,207.57,207.51,36.15370805]
[1731684784651,3.371,207.66,207.52,36.15370805]
[1731684784652,36.15370805,207.58,207.52,36.15370805]
[1731684784856,23.471,207.66,207.52,0.09367462]
[1731684785155,22.28893747,207.62,207.55,22.28893747]
[1731684785458,22.28893747,207.62,207.52,0.09367462]
[1731684785659,0.1,207.7,207.57,22.28893747]
[1731684785660,22.28893747,207.63,207.57,22.28893747]
[1731684786154,22.28893747,207.64,207.57,22.28893747]
[1731684786536,22.28893747,207.63,207.57,22.28893747]
[1731684787056,22.28893747,207.65,207.59,22.28893747]
[1731684787256,22.28893747,207.69,207.63,22.28893747]
[1731684787646,22.28893747,207.7,207.64,22.28893747]
[1731684787844,22.28893747,207.75,207.69,22.28893747]
[1731684788071,13.0072,207.78,207.68,22.28893747]
[1731684788072,22.28893747,207.74,207.68,22.28893747]
[1731684788354,22.28893747,207.77,207.71,22.28893747]
[1731684788561,22.28893747,207.79,207.73,22.28893747]
[1731684788752,36.1435471,207.79,207.72,36.1435471]
[1731684789059,36.1435471,207.77,207.73,16.8487]
[1731684789444,36.1435471,207.78,207.73,16.8487]
[1731684789757,36.1435471,207.79,207.73,52.9922471]
[1731684790287,36.1435471,207.81,207.75,36.1435471]
[1731684790641,36.1435471,207.85,207.79,36.1435471]
[1731684790843,0.4742686,207.9,207.84,36.1435471]
[1731684791038,0.4742686,207.9,207.79,0.09367462]
[1731684791246,0.4742686,207.9,207.86,36.1435471]
[1731684791450,0.4742686,207.9,207.88,36.1435471]
[1731684791661,0.4742686,207.9,207.87,36.1435471]
[1731684791863,0.4742686,207.9,207.8,0.1]
[1731684791864,0.4742686,207.9,207.86,36.1435471]
[1731684792160,36.1435471,207.89,207.84,20.0]
[1731684792339,36.1435471,207.85,207.78,36.1435471]
[1731684792540,0.1,207.88,207.77,12.0322]
[1731684792739,13.1115,207.88,207.74,4.8135]
[1731684792942,0.1,207.81,207.62,12.6448]
[1731684793245,23.876884,207.81,207.66,12.0385]
[1731684793442,0.1,207.81,207.67,0.09367462]
[1731684793649,36.1435471,207.74,207.68,36.1435471]
[1731684793960,36.1435471,207.75,207.69,36.1435471]
[1731684794160,36.1435471,207.8,207.66,12.0385]
[1731684794161,36.1435471,207.72,207.66,48.1820471]
[1731684794484,36.1435471,207.71,207.66,16.854]
[1731684794638,3.3695,207.74,207.66,16.854]
[1731684794835,36.1435471,207.72,207.66,16.854]
[1731684795141,36.1435471,207.72,207.66,52.9975471]
[1731684795447,36.1435471,207.74,207.66,16.854]
[1731684795645,36.1435471,207.76,207.7,36.1435471]
[1731684796058,36.1435471,207.75,207.69,36.1435471]
[1731684796651,36.1435471,207.75,207.7,16.8511]
[1731684796856,36.1435471,207.8,207.7,16.8511]
[1731684796857,36.1435471,207.74,207.7,16.8511]
[1731684797040,36.1435471,207.72,207.68,4.8149]
[1731684797237,36.1435471,207.71,207.66,4.8154]
[1731684797462,36.1435471,207.69,207.66,4.8154]
[1731684797961,36.1435471,207.67,207.6,36.1435471]
[1731684798140,36.1435471,207.64,207.6,16.8589]
[1731684798540,36.1435471,207.63,207.6,12.0421]
[1731684798765,36.1435471,207.64,207.6,12.0421]
[1731684798965,3.3706,207.68,207.57,4.8175]
[1731684798966,36.1435471,207.62,207.57,4.8175]
[1731684799169,36.1435471,207.61,207.57,4.8175]
[1731684799363,36.1435471,207.6,207.57,4.8175]
[1731684799667,36.1435471,207.6,207.55,16.863]
[1731684800254,36.1435471,207.61,207.55,16.863]
[1731684800647,36.1435471,207.63,207.57,36.1435471]
[1731684800865,36.1435471,207.61,207.54,36.1435471]
[1731684801164,3.3706,207.68,207.5,36.7995]
[1731684801165,36.1435471,207.62,207.56,36.1435471]
[1731684801376,36.1435471,207.64,207.58,36.1435471]
[1731684801548,33.04,207.69,207.59,36.1435471]
[1731684801751,36.1435471,207.65,207.59,36.1435471]
[1731684802447,36.1435471,207.66,207.59,36.1435471]
[1731684802747,36.1435471,207.67,207.61,16.8585]
[1731684802947,36.1435471,207.65,207.61,16.8585]
[1731684803247,36.1435471,207.72,207.64,36.1435471]
[1731684803448,3.3688,207.79,207.63,0.09367462]
[1731684803646,55.4022081,207.75,207.68,36.1435471]
[1731684804079,36.1435471,207.77,207.71,36.1435471]
[1731684804376,31.3494,207.81,207.71,36.1435471]
[1731684804377,36.1435471,207.78,207.71,36.1435471]
[1731684804864,36.1435471,207.74,207.72,12.0354]
[1731684805304,36.1435471,207.77,207.72,16.8495]
[1731684805474,36.1435471,207.78,207.72,16.8495]
[1731684805775,32.4835,207.89,207.73,20.21916462]
[1731684806077,32.3835,207.89,207.75,0.21916462]
[1731684806249,32.3835,207.89,207.77,0.21916462]
[1731684806459,0.4742686,207.9,207.79,0.21916462]
[1731684806869,36.1435471,207.87,207.83,4.8116]
[1731684807171,36.1435471,207.88,207.83,4.8116]
[1731684807372,36.1435471,207.89,207.83,4.8116]
[1731684807667,36.6178157,207.9,207.84,36.1435471]
[1731684807870,36.1435471,207.89,207.83,52.9841471]
[1731684808086,36.1435471,207.89,207.83,16.8406]
[1731684808252,36.1435471,207.89,207.83,52.9841471]
[1731684809079,0.4742686,207.9,207.85,36.1435471]
[1731684810061,36.6178157,207.9,207.86,16.8382]
[1731684810467,36.1435471,207.89,207.86,12.0273]
[1731684810674,36.1435471,207.87,207.84,4.8112]
[1731684810853,0.4742686,207.9,207.81,12.0297]
[1731684810854,36.1435471,207.85,207.81,12.0297]
[1731684811276,36.1435471,207.86,207.81,12.0297]
[1731684811669,36.1435471,207.85,207.81,12.0297]
[1731684811976,36.6178157,207.9,207.83,36.1435471]
[1731684812170,0.4742686,207.9,207.87,36.1435471]
[1731684812377,0.4742686,207.9,207.82,0.09367462]
[1731684812378,0.4742686,207.9,207.88,36.1435471]
[1731684812564,0.4742686,207.9,207.89,56.1435471]
[1731684813377,0.4742686,207.9,207.89,56.36271172]
[1731684813790,0.4742686,207.9,207.89,61.29840172]
[1731684814479,0.4742686,207.9,207.89,61.17291172]
[1731684814984,0.4742686,207.9,207.88,12.026]
[1731684814985,36.6178157,207.9,207.88,12.026]
[1731684815173,36.1435471,207.89,207.88,12.026]
[1731684815361,0.4742686,207.9,207.88,12.026]
[1731684815558,0.4742686,207.9,207.88,16.8364]
[1731684815753,0.4742686,207.9,207.89,0.09367462]
[1731684816374,0.4742686,207.9,207.89,36.36271172]
[1731684816966,0.4742686,207.9,207.88,16.8364]
[1731684817286,0.4742686,207.9,207.83,48.1721471]
[1731684817287,36.1435471,207.89,207.83,48.1721471]
[1731684817672,36.1435471,207.88,207.83,16.8402]
[1731684817978,0.4742686,207.9,207.86,36.1435471]
[1731684818188,0.4742686,207.9,207.85,36.1435471]
[1731684818486,0.4742686,207.9,207.84,0.09367462]
[1731684818882,0.4742686,207.9,207.87,36.1435471]
[1731684819061,0.4742686,207.9,207.84,0.21916462]
[1731684819062,0.4742686,207.9,207.89,36.1435471]
[1731684819266,0.4742686,207.9,207.89,56.1435471]
[1731684819869,0.4742686,207.9,207.89,61.29840172]
[1731684820074,0.4742686,207.9,207.89,121.21883282]
[1731684820266,0.4742686,207.9,207.89,134.09963282]
[1731684820759,36.1435471,208.06,207.92,0.1]
[1731684820965,36.1435471,208.06,208.0,36.1435471]
[1731684821165,36.1435471,208.07,208.01,36.1435471]
[1731684821385,0.4742686,208.1,208.05,36.1435471]
[1731684821568,0.4742686,208.1,208.07,0.34465462]
[1731684821777,0.4742686,208.1,208.08,16.8204]
[1731684822085,7.43261381,208.26,208.09,116.40863282]
[1731684822269,36.1435471,208.25,208.18,36.1435471]
[1731684822668,36.1435471,208.24,208.17,36.1435471]
[1731684822877,39.5041471,208.3,208.15,36.1435471]
[1731684822878,36.1435471,208.22,208.15,36.1435471]
[1731684823080,0.1,208.25,208.08,16.8204]
[1731684823384,36.1435471,208.09,208.02,12.0175]
[1731684823596,36.1435471,208.06,208.03,4.8069]
[1731684823760,36.1435471,208.08,208.01,36.1435471]
[1731684823965,0.1,208.19,207.96,0.1]
[1731684823966,36.1435471,208.09,208.03,36.1435471]
[1731684824166,36.1435471,208.13,208.04,0.09367462]
[1731684824364,36.1435471,208.12,208.07,0.09367462]
[1731684824786,36.1435471,208.12,208.06,36.1435471]
[1731684824978,36.1435471,208.13,208.07,36.1435471]
[1731684825177,36.1435471,208.13,208.08,4.8058]
[1731684825571,36.1435471,208.09,208.06,12.0152]
[1731684825888,0.1,208.17,208.06,16.8215]
[1731684826094,36.1435471,208.1,208.06,16.8215]
[1731684826689,36.1435471,208.08,208.06,12.0152]
[1731684826984,36.1435471,208.07,208.06,12.0152]
[1731684827190,36.1435471,208.08,208.06,12.0152]
[1731684827562,0.1,208.15,208.02,36.1435471]
[1731684827563,36.1435471,208.07,208.02,4.8071]
[1731684827765,36.1435471,208.04,208.01,12.0185]
[1731684828179,36.1435471,208.05,208.01,12.0185]
[1731684828380,36.1435471,208.05,208.01,16.8259]
[1731684828582,36.1435471,208.04,208.01,16.8259]
[1731684829174,36.1435471,208.04,208.01,12.0185]
[1731684829378,36.1435471,208.03,207.99,4.8079]
[1731684829783,3.3641,208.08,207.99,4.8079]
[1731684829784,36.1435471,208.05,207.99,4.8079]
[1731684829968,36.1435471,208.02,207.99,4.8079]
[1731684830167,36.1435471,208.03,207.99,4.8079]
[1731684830381,36.1435471,208.04,207.97,36.23722172]
[1731684830588,36.1435471,208.01,207.94,36.1435471]
[1731684830775,36.1435471,208.0,207.94,36.1435471]
[1731684830972,36.1435471,208.0,207.91,16.8341]
[1731684830973,36.1435471,207.98,207.91,52.9776471]
[1731684831271,36.1435471,207.97,207.91,16.8341]
[1731684831676,36.1435471,207.95,207.91,16.8341]
[1731684831888,36.1435471,207.96,207.91,16.8341]
[1731684833575,36.1435471,207.95,207.91,12.0244]
[1731684833889,36.1435471,207.95,207.82,12.6066]
[1731684833890,36.1435471,207.92,207.87,4.8105]
[1731684834074,36.1435471,207.88,207.86,12.0271]
[1731684834477,36.1435471,207.88,207.83,4.8115]
[1731684834674,36.1435471,207.87,207.83,4.8115]
[1731684835092,36.1435471,207.9,207.83,40.9550471]
[1731684835281,30.9436,207.98,207.83,40.9550471]
[1731684835282,36.1435471,207.91,207.84,36.23722172]
[1731684835785,36.1435471,207.91,207.85,16.839]
[1731684836172,36.1435471,207.9,207.85,16.839]
[1731684836797,36.1435471,207.89,207.85,16.839]
[1731684836986,36.1435471,207.88,207.85,16.839]
[1731684837488,3.3664,207.94,207.83,4.8115]
[1731684837489,36.1435471,207.87,207.83,4.8115]
[1731684837992,36.1435471,207.88,207.83,4.8115]
[1731684838189,36.1435471,207.88,207.83,16.8405]
[1731684840276,36.1435471,207.89,207.83,16.8405]
[1731684840583,36.1435471,207.91,207.84,36.1435471]
[1731684840787,36.1435471,207.87,207.78,12.0315]
[1731684840974,36.2435471,207.9,207.78,12.0315]
[1731684841172,0.1,207.88,207.73,12.0343]
[1731684841397,23.902374,207.87,207.73,48.1778471]
[1731684841573,36.1435471,207.79,207.73,12.0343]
[1731684841774,23.902374,207.87,207.73,12.0343]
[1731684841775,36.1435471,207.82,207.75,36.1435471]
[1731684841991,32.1634,207.88,207.74,0.09367462]
[1731684841992,36.1435471,207.83,207.74,0.09367462]
[1731684842197,36.1435471,207.84,207.78,36.1435471]
[1731684842499,12.1634,207.88,207.78,36.1435471]
[1731684842500,36.1435471,207.85,207.78,36.1435471]
[1731684842993,36.1435471,207.86,207.79,36.1435471]
[1731684843204,36.1435471,207.85,207.8,16.843]
[1731684843377,36.1435471,207.81,207.75,12.0332]
[1731684843585,36.1435471,207.8,207.75,12.0332]
[1731684843907,36.1435471,207.82,207.75,48.1767471]
[1731684844087,3.3673,207.88,207.76,0.09367462]
[1731684844286,3.367,207.9,207.76,0.09367462]
[1731684844798,3.367,207.9,207.76,20.09367462]
[1731684845308,36.1435471,207.85,207.78,56.1435471]
[1731684845689,36.1435471,207.89,207.82,36.1435471]
[1731684845893,12.5398,207.94,207.86,36.1435471]
[1731684845894,36.1435471,207.93,207.86,36.1435471]
[1731684846085,36.1435471,207.93,207.87,36.1435471]
[1731684846398,3.366,207.96,207.83,0.09367462]
[1731684846577,34.2093,207.98,207.85,0.09367462]
[1731684846782,36.1435471,207.96,207.9,36.1435471]
[1731684847100,30.8436,207.98,207.85,36.839]
[1731684847399,30.8436,207.98,207.87,0.09367462]
[1731684847577,34.2093,207.98,207.85,16.839]
[1731684847979,0.1,207.96,207.85,12.0279]
[1731684848287,36.1435471,207.88,207.85,16.839]
[1731684848487,36.1435471,207.87,207.85,16.839]
[1731684848699,36.1435471,207.88,207.85,16.839]
[1731684849282,36.1435471,207.88,207.85,12.0279]
[1731684849495,36.1435471,207.91,207.85,48.1714471]
[1731684849998,36.1435471,207.94,207.87,36.1435471]
[1731684850199,36.1435471,207.91,207.85,48.1714471]
[1731684850592,36.1435471,207.92,207.85,48.1714471]
[1731684850977,30.8436,207.98,207.87,52.9808471]
[1731684851177,36.1435471,207.97,207.91,36.1435471]
[1731684851378,36.1435471,208.01,207.95,36.1435471]
[1731684851578,36.1435471,208.01,207.94,36.1435471]
[1731684851779,43.7793,208.05,207.89,0.09367462]
[1731684851780,31.1839,208.05,207.97,36.1435471]
[1731684852002,36.1435471,208.02,207.91,20.34465462]
[1731684852203,36.1435471,208.01,207.95,36.1435471]
[1731684852402,34.5485,208.05,207.91,36.1435471]
[1731684852695,34.5485,208.05,207.89,0.09367462]
[1731684852696,36.1435471,208.0,207.89,0.09367462]
[1731684852896,3.3646,208.05,207.89,0.09367462]
[1731684853102,3.3646,208.05,207.91,0.09367462]
[1731684853288,3.3646,208.05,207.91,44.12153862]
[1731684853600,3.3639,208.09,207.91,44.12153862]
[1731684854098,36.1435471,208.06,207.99,36.1435471]
[1731684854296,3.3639,208.09,207.98,36.1435471]
[1731684854297,36.1435471,208.04,207.98,36.1435471]
[1731684854998,36.1435471,208.01,207.95,20.12549]
[1731684855192,36.1435471,208.04,207.97,36.1435471]
[1731684855391,36.1435471,208.05,207.99,36.1435471]
[1731684855599,36.1435471,208.04,207.98,20.0]
[1731684855804,36.1435471,208.05,207.98,56.1435471]
[1731684856187,36.1435471,208.05,207.99,36.1435471]
[1731684856386,8.5077,208.15,207.97,20.0]
[1731684856387,36.1435471,208.09,208.02,36.1435471]
[1731684856707,36.1435471,208.09,208.03,36.1435471]
[1731684856891,36.1435471,208.12,208.05,36.1435471]
[1731684857095,36.1435471,208.12,208.06,52.9655471]
[1731684857789,36.1435471,208.08,208.06,16.822]
[1731684857992,36.1435471,208.07,208.01,12.0182]
[1731684858190,36.1435471,208.03,208.01,12.0182]
[1731684858396,36.1435471,208.1,208.01,16.8256]
[1731684858792,36.1435471,208.07,208.01,16.8256]
[1731684859399,36.1435471,208.05,207.98,36.1435471]
[1731684859807,36.1435471,208.06,208.0,36.1435471]
[1731684860409,36.1435471,208.07,208.01,36.36271172]
[1731684860704,36.1435471,208.07,207.97,20.0]
[1731684860705,36.1435471,208.08,208.02,40.9507471]
[1731684861007,36.1435471,208.12,208.06,36.1435471]
[1731684861215,36.1435471,208.11,208.03,20.21916462]
[1731684861511,36.1435471,208.1,208.03,56.2690371]
[1731684861719,36.1435471,208.07,208.02,16.8252]
[1731684862025,36.1435471,208.03,207.97,12.0206]
[1731684862313,0.1,208.05,207.92,16.92657462]
[1731684862491,0.1,208.05,207.92,12.11717462]
[1731684862492,36.1435471,207.94,207.92,12.11717462]
[1731684862693,3.3648,208.03,207.92,16.92667462]
[1731684862892,36.1435471,207.96,207.92,16.92667462]
[1731684863098,36.1435471,207.94,207.92,12.11717462]
[1731684863411,31.0063,208.04,207.94,0.21916462]
[1731684863588,3.3642,208.08,207.98,36.1435471]
[1731684864000,36.1435471,208.03,207.97,36.1435471]
[1731684864382,36.1435471,208.02,207.96,36.1435471]
[1731684864587,36.1435471,208.02,207.97,4.8083]
[1731684865005,36.1435471,208.02,207.97,16.8292]
[1731684865193,36.1435471,208.03,207.97,16.8292]
[1731684865603,36.1435471,208.01,207.97,16.8292]
[1731684865995,36.1435471,208.02,207.97,16.8292]
[1731684866200,36.1435471,208.03,207.97,52.9727471]
[1731684866504,36.1435471,208.02,207.97,16.8292]
[1731684866902,36.1435471,207.99,207.97,12.0209]
[1731684867104,36.1435471,207.98,207.93,4.8091]
[1731684867311,36.1435471,207.97,207.93,4.8091]
[1731684867495,36.1435471,207.95,207.92,0.09367462]
[1731684867815,36.1435471,207.94,207.92,0.09367462]
[1731684868107,36.1435471,208.0,207.93,36.1435471]
[1731684868294,36.1435471,208.0,207.95,16.8309]
[1731684868608,36.1435471,207.99,207.95,16.8309]
[1731684868997,36.1435471,207.98,207.95,12.0221]
[1731684869309,36.1435471,207.98,207.95,16.8309]
[1731684869705,36.1435471,207.97,207.95,16.8309]
[1731684870211,36.1435471,207.97,207.95,12.0221]
[1731684870603,36.1435471,207.96,207.92,0.09367462]
[1731684870815,36.2435471,208.0,207.92,0.09367462]
[1731684870816,36.1435471,207.93,207.92,0.09367462]
[1731684871010,11.7759,208.05,207.92,0.09367462]
[1731684871011,0.2,208.04,207.92,0.09367462]
[1731684871313,24.102374,208.04,207.92,0.09367462]
[1731684872089,0.1,208.01,207.92,0.09367462]
[1731684872297,23.776884,207.99,207.92,0.09367462]
[1731684872595,36.1435471,207.93,207.92,0.09367462]
[1731684874704,96.0639782,207.93,207.92,0.09367462]
[1731684874892,96.2894682,207.93,207.92,0.09367462]
[1731684875214,23.776884,207.91,207.89,0.09367462]
[1731684875401,44.46535752,207.9,207.89,0.09367462]
[1731684876409,22.23267876,207.9,207.89,0.09367462]
[1731684876795,23.776884,207.89,207.76,32.01844476]
[1731684876999,22.23267876,207.8,207.76,32.01844476]
[1731684877227,0.09367462,207.88,207.76,32.01844476]
[1731684877228,22.23267876,207.79,207.76,32.01844476]
[1731684877601,22.23267876,207.77,207.76,12.0327]
[1731684877901,22.23267876,207.79,207.76,16.8459]
[1731684878110,22.23267876,207.8,207.76,16.8459]
[1731684878419,22.23267876,207.81,207.76,16.8459]
[1731684879120,22.23267876,207.83,207.77,42.48365876]
[1731684879320,22.23267876,207.85,207.79,22.23267876]
[1731684879700,22.23267876,207.86,207.8,22.23267876]
[1731684880418,22.23267876,207.84,207.79,20.25098]
[1731684880635,22.23267876,207.85,207.79,42.48365876]
[1731684881005,22.23267876,207.85,207.8,16.843]
[1731684882509,22.23267876,207.86,207.8,39.07567876]
[1731684883407,22.23267876,207.92,207.85,22.23267876]
[1731684883621,22.23267876,207.94,207.88,22.23267876]
[1731684883815,22.23267876,207.93,207.86,22.23267876]
[1731684884011,22.23267876,207.9,207.82,0.25098]
[1731684884211,3.466,207.96,207.82,0.25098]
[1731684884212,0.09367462,207.95,207.82,0.25098]
[1731684884414,22.23267876,207.88,207.82,0.25098]
[1731684884621,22.23267876,207.86,207.83,12.029]
[1731684884820,22.23267876,207.85,207.83,12.029]
[1731684885313,22.23267876,207.84,207.79,12.0313]
[1731684885511,22.33267876,207.9,207.79,12.0313]
[1731684885512,22.23267876,207.8,207.79,12.0313]
[1731684885720,22.23267876,207.82,207.79,12.0313]
[1731684886317,22.23267876,207.81,207.79,12.0313]
[1731684886637,22.23267876,207.82,207.79,12.0313]
[1731684887016,22.23267876,207.8,207.68,57.3593]
[1731684887226,22.23267876,207.76,207.69,22.23267876]
[1731684887426,22.23267876,207.75,207.69,22.23267876]
[1731684887816,22.23267876,207.76,207.69,22.23267876]
[1731684888131,22.23267876,207.76,207.71,12.0359]
[1731684888334,22.23267876,207.78,207.72,22.23267876]
[1731684888638,3.3679,207.84,207.74,22.23267876]
[1731684888639,22.23267876,207.8,207.74,22.23267876]
[1731684888814,22.23267876,207.8,207.73,22.23267876]
[1731684889229,22.23267876,207.8,207.74,20.0]
[1731684889418,22.23267876,207.8,207.75,4.8134]
[1731684890108,22.23267876,207.79,207.75,4.8134]
[1731684890307,22.23267876,207.79,207.73,22.23267876]
[1731684890308,22.23267876,207.76,207.72,12.0354]
[1731684891511,22.23267876,207.75,207.72,12.0354]
[1731684892033,22.23267876,207.73,207.68,4.8149]
[1731684892340,22.23267876,207.74,207.68,27.04757876]
[1731684892633,22.23267876,207.73,207.68,16.8526]
[1731684893133,22.23267876,207.72,207.68,16.8526]